bitfinex/quotes_SOLUSD_20251009
["timestamp","ask_amount","ask_price","bid_price","bid_amount"]
[1760022797047,3.0054144,221.4,221.31,32.52]
[1760022797242,3.0054144,221.39,221.32,0.3]
[1760022797448,0.7,221.41,221.32,0.3]
[1760022797642,3.00454925,221.4,221.32,0.3]
[1760022797840,3.00454925,221.39,221.32,0.3]
[1760022798136,0.7,221.41,221.32,0.3]
[1760022798334,3.00378471,221.4,221.32,0.3]
[1760022798529,10.87647521,221.38,221.28,0.3]
[1760022798730,3.70378471,221.37,221.31,32.52]
[1760022798938,3.00378471,221.36,221.32,28.94]
[1760022799131,3.70378471,221.35,221.32,32.52]
[1760022799447,3.70378471,221.34,221.32,32.52]
[1760022799751,0.7,221.37,221.32,32.52]
[1760022799935,3.70326456,221.36,221.32,32.52]
[1760022800250,3.00326456,221.35,221.32,32.52]
[1760022800449,3.94325479,221.43,221.35,20.8]
[1760022800649,3.00446671,221.42,221.36,0.3]
[1760022800834,0.2,221.43,221.36,0.3]
[1760022801149,3.00450295,221.42,221.36,0.3]
[1760022801446,0.2,221.49,221.36,108.97647521]
[1760022801651,5.91166849,221.45,221.37,6.03255636]
[1760022801868,5.91166849,221.39,221.33,32.9]
[1760022802163,10.87647521,221.36,221.28,32.9]
[1760022802455,3.00275415,221.35,221.28,32.9]
[1760022802662,0.7,221.34,221.28,32.9]
[1760022803534,9.6159328,221.33,221.23,13.27085447]
[1760022803729,5.91166849,221.3,221.24,32.9]
[1760022803923,3.70191297,221.29,221.22,32.9]
[1760022804136,9.61221491,221.28,221.22,32.9]
[1760022804352,3.00054642,221.27,221.22,32.9]
[1760022804534,0.7,221.28,221.22,32.9]
[1760022804733,3.00109258,221.27,221.22,32.9]
[1760022805051,0.7,221.27,221.22,32.9]
[1760022805229,0.7,221.26,221.16,46.54385445]
[1760022805435,2.99965405,221.25,221.17,32.9]
[1760022805635,2.99940396,221.24,221.17,33.2]
[1760022805966,10.87647521,221.27,221.18,4.8210256]
[1760022806262,2.99942733,221.26,221.18,4.8210256]
[1760022806437,2.99942733,221.25,221.18,4.8210256]
[1760022806757,2.99942733,221.24,221.18,4.8210256]
[1760022806947,0.7,221.27,221.18,4.8210256]
[1760022807154,3.00165355,221.26,221.18,4.8210256]
[1760022807330,3.00165355,221.25,221.18,4.8210256]
[1760022807537,3.00165355,221.24,221.18,4.5210256]
[1760022807737,20.8,221.28,221.19,0.3]
[1760022807948,3.00267693,221.27,221.19,0.3]
[1760022808151,3.00267693,221.26,221.2,4.52079566]
[1760022808344,3.00267693,221.25,221.2,4.52079566]
[1760022808650,3.00267693,221.24,221.2,4.52079566]
[1760022808952,27.41166849,221.28,221.2,4.52079566]
[1760022809158,3.00299436,221.27,221.2,4.52079566]
[1760022809334,3.00299436,221.26,221.2,4.52079566]
[1760022809536,3.00299436,221.25,221.2,4.52079566]
[1760022809753,3.00299436,221.24,221.2,4.52079566]
[1760022809956,3.00299436,221.23,221.2,4.82079566]
[1760022810156,27.41166849,221.28,221.18,4.52120444]
[1760022810338,3.00435251,221.27,221.18,4.52120444]
[1760022810653,3.00435251,221.26,221.18,4.52120444]
[1760022810834,3.00435251,221.25,221.18,4.52120444]
[1760022811037,3.00435251,221.24,221.18,4.52120444]
[1760022811352,4.19488517,221.3,221.2,20.8]
[1760022811573,3.01111154,221.29,221.21,0.3]
[1760022811736,10.87647521,221.34,221.22,32.84]
[1760022811936,3.01349387,221.33,221.23,0.3]
[1760022812161,3.01349387,221.32,221.23,0.3]
[1760022812337,3.01349387,221.31,221.23,0.3]
[1760022812536,3.01349387,221.3,221.23,0.3]
[1760022812841,27.41166849,221.35,221.23,0.3]
[1760022813156,3.01383067,221.34,221.24,15.81992406]
[1760022813347,3.01383067,221.33,221.24,15.81992406]
[1760022813547,3.01383067,221.32,221.24,15.81992406]
[1760022813861,3.01383067,221.31,221.24,15.81992406]
[1760022814064,3.01383067,221.3,221.24,15.81992406]
[1760022814362,0.7,221.33,221.24,15.81992406]
[1760022814562,3.01463583,221.32,221.24,15.81992406]
[1760022814744,3.01463583,221.31,221.24,15.81992406]
[1760022814949,3.01463583,221.3,221.25,0.3]
[1760022815150,20.8,221.35,221.26,0.3]
[1760022815345,3.01463868,221.34,221.27,32.8]
[1760022815665,3.01463868,221.33,221.27,32.8]
[1760022815851,3.01463868,221.32,221.27,32.8]
[1760022816165,0.7,221.36,221.28,0.3]
[1760022816365,3.01464947,221.35,221.28,0.3]
[1760022816555,3.01464947,221.34,221.29,4.51895702]
[1760022816752,3.01464947,221.33,221.29,4.51895702]
[1760022816953,3.01464947,221.32,221.29,4.51895702]
[1760022817269,0.7,221.36,221.29,4.51895702]
[1760022817447,3.01442727,221.35,221.29,4.51895702]
[1760022817770,3.01442727,221.34,221.29,4.51895702]
[1760022817940,3.01442727,221.33,221.29,4.51895702]
[1760022818143,0.7,221.36,221.29,4.51895702]
[1760022818344,0.7,221.36,221.18,0.3]
[1760022818345,5.91166849,221.3,221.18,0.3]
[1760022818555,9.62587939,221.29,221.19,48.58350015]
[1760022818751,3.01002433,221.28,221.19,48.58350015]
[1760022818973,0.7,221.29,221.22,20.8]
[1760022819354,0.7,221.28,221.19,58.38100004]
[1760022819751,5.91166849,221.31,221.2,11.17647521]
[1760022819963,3.01050731,221.3,221.21,0.3]
[1760022820150,3.01050731,221.29,221.22,15.8213543]
[1760022820355,21.5,221.31,221.22,16.1213543]
[1760022820653,3.01308219,221.3,221.22,16.1213543]
[1760022820845,0.7,221.33,221.23,0.3]
[1760022821044,3.01394589,221.32,221.24,32.76]
[1760022821251,3.71389758,221.31,221.24,32.76]
[1760022821454,0.7,221.31,221.24,32.76]
[1760022822144,0.7,221.3,221.2,4.52079566]
[1760022822356,21.5,221.32,221.21,43.91647521]
[1760022822578,3.01293259,221.31,221.21,43.61647521]
[1760022822763,3.01293259,221.3,221.22,0.3]
[1760022822959,0.7,221.32,221.22,0.3]
[1760022824182,0.7,221.32,221.23,15.82063914]
[1760022824471,0.7,221.32,221.24,0.3]
[1760022825667,0.7,221.33,221.24,0.3]
[1760022826673,0.7,221.33,221.25,15.81920903]
[1760022826871,0.7,221.32,221.26,32.72]
[1760022827474,0.7,221.31,221.26,32.72]
[1760022827672,0.7,221.3,221.26,32.72]
[1760022827975,0.7,221.29,221.26,32.72]
[1760022828181,0.45163038,221.35,221.29,20.8]
[1760022828382,0.7,221.43,221.3,0.45187528]
[1760022828683,3.71667374,221.42,221.32,15.81420566]
[1760022828856,3.71667374,221.41,221.33,32.84]
[1760022829058,3.71667374,221.4,221.33,32.84]
[1760022829255,24.76331885,221.41,221.32,15.81420566]
[1760022829460,0.7,221.39,221.34,32.84]
[1760022830567,0.7,221.38,221.3,4.518572]
[1760022830779,3.71607988,221.37,221.31,37.33850103]
[1760022830961,3.01596826,221.36,221.31,37.33850103]
[1760022831285,0.7,221.36,221.31,37.33850103]
[1760022831572,0.7,221.35,221.31,37.33850103]
[1760022831778,0.7,221.34,221.32,32.82]
[1760022831974,3.71633464,221.33,221.29,32.8]
[1760022832273,3.71633464,221.32,221.29,32.8]
[1760022832459,3.01633464,221.31,221.29,32.8]
[1760022832666,0.7,221.35,221.3,4.51875282]
[1760022832973,1.15163038,221.38,221.3,15.81563488]
[1760022833173,23.81716918,221.37,221.3,15.81563488]
[1760022833358,3.01716918,221.36,221.3,15.81563488]
[1760022833558,20.8,221.37,221.3,15.81563488]
[1760022833759,21.5,221.38,221.3,15.81563488]
[1760022833970,0.7,221.38,221.3,15.81563488]
[1760022834658,20.8,221.4,221.3,15.81563488]
[1760022834873,3.01812448,221.39,221.31,0.3]
[1760022835078,20.8,221.4,221.31,0.3]
[1760022835380,3.01810491,221.39,221.31,0.3]
[1760022835557,20.8,221.4,221.31,0.3]
[1760022835753,3.01810616,221.39,221.31,0.3]
[1760022836071,0.7,221.39,221.31,0.3]
[1760022837489,0.7,221.39,221.32,15.81420566]
[1760022837782,21.5,221.42,221.32,15.81420566]
[1760022837985,3.01822177,221.41,221.33,11.17647521]
[1760022838279,0.7,221.44,221.34,32.78]
[1760022838492,3.01779107,221.43,221.34,32.78]
[1760022838690,0.7,221.42,221.34,32.78]
[1760022838866,0.7,221.41,221.35,32.76]
[1760022839066,0.7,221.4,221.36,32.76]
[1760022839280,0.7,221.39,221.36,32.76]
[1760022839483,0.7,221.38,221.36,37.27747034]
[1760022839978,7.67994096,221.37,221.25,4.51977401]
[1760022840185,3.96331885,221.33,221.25,4.51977401]
[1760022840387,7.67994096,221.32,221.26,32.78]
[1760022840584,3.71662211,221.31,221.26,32.78]
[1760022840766,3.96331885,221.33,221.26,32.78]
[1760022840968,3.71544389,221.32,221.26,32.78]
[1760022841168,0.7,221.32,221.26,32.78]
[1760022841375,20.8,221.33,221.27,4.51936548]
[1760022841563,0.7,221.35,221.27,15.81777918]
[1760022841764,3.01586941,221.34,221.27,15.81777918]
[1760022842067,3.01586941,221.33,221.27,15.81777918]
[1760022842266,0.7,221.35,221.27,15.81777918]
[1760022842467,3.01612631,221.34,221.27,15.81777918]
[1760022842667,3.01612631,221.33,221.27,15.81777918]
[1760022842874,0.7,221.35,221.27,15.81777918]
[1760022843187,3.01612631,221.34,221.27,15.81777918]
[1760022843394,3.01612631,221.33,221.27,15.81777918]
[1760022843603,0.7,221.35,221.27,15.81777918]
[1760022843800,3.01637432,221.34,221.27,15.81777918]
[1760022844098,3.01637432,221.33,221.27,15.81777918]
[1760022844299,0.7,221.35,221.27,15.81777918]
[1760022844589,3.01639869,221.34,221.27,15.81777918]
[1760022844788,3.01639869,221.33,221.27,15.81777918]
[1760022844973,0.7,221.35,221.27,15.81777918]
[1760022845288,3.01639943,221.34,221.27,15.81777918]
[1760022845485,0.7,221.35,221.27,15.81777918]
[1760022845486,3.01639943,221.33,221.27,230.01777918]
[1760022845689,0.7,221.35,221.27,230.01777918]
[1760022845894,3.01640645,221.34,221.27,230.01777918]
[1760022846075,3.01640645,221.33,221.27,230.01777918]
[1760022846386,0.7,221.35,221.27,230.31777918]
[1760022846577,3.01736395,221.34,221.27,230.31777918]
[1760022846776,20.42076569,221.42,221.27,230.31777918]
[1760022846777,0.45163038,221.43,221.31,31.67647521]
[1760022846975,0.2,221.49,221.36,31.67647521]
[1760022847175,0.2,221.49,221.41,20.8]
[1760022847496,0.2,221.49,221.42,33.08]
[1760022847680,0.2,221.49,221.42,46.89726401]
[1760022848574,0.2,221.49,221.43,15.80634963]
[1760022848968,0.2,221.49,221.42,18.33347641]
[1760022849172,0.9,221.49,221.42,4.5162124]
[1760022849480,0.9,221.49,221.43,33.04]
[1760022850082,0.2,221.49,221.44,11.3280648]
[1760022850278,0.2,221.49,221.47,20.8]
[1760022850477,0.2,221.49,221.48,4.51508036]
[1760022850978,0.2,221.49,221.48,33.26]
[1760022851402,0.2,221.49,221.44,36.60555097]
[1760022851696,0.2,221.49,221.44,15.80555097]
[1760022851900,0.9,221.49,221.45,33.24]
[1760022852506,0.9,221.49,221.46,4.51548812]
[1760022852790,1.12163038,221.48,221.43,33.22]
[1760022853002,0.67,221.47,221.43,33.22]
[1760022853177,0.67,221.46,221.43,33.22]
[1760022853372,0.67,221.45,221.3,15.81563488]
[1760022853575,0.45163038,221.48,221.3,15.81563488]
[1760022853576,21.92163038,221.44,221.31,33.24]
[1760022853786,0.67,221.43,221.31,33.24]
[1760022853995,0.67,221.42,221.31,54.04]
[1760022854682,0.67,221.42,221.32,49.05420566]
[1760022855482,0.67,221.42,221.32,62.46707331]
[1760022856378,20.8,221.45,221.32,62.46707331]
[1760022856779,21.25163038,221.45,221.33,10.87647521]
[1760022856994,0.67,221.44,221.33,10.87647521]
[1760022858499,0.67,221.44,221.34,15.81277671]
[1760022858704,1.12163038,221.44,221.34,230.01277671]
[1760022859195,21.92163038,221.44,221.34,230.01277671]
[1760022860198,1.12163038,221.44,221.34,230.01277671]
[1760022861202,0.67,221.44,221.34,230.01277671]
[1760022862908,0.67,221.44,221.36,4.517528]
[1760022863208,0.67,221.44,221.37,33.12]
[1760022864213,0.67,221.44,221.37,37.63714496]
[1760022864506,3.96331885,221.42,221.37,80.9]
[1760022864707,3.96331885,221.42,221.36,133.3]
[1760022864708,5.08494923,221.41,221.32,218.71821479]
[1760022864890,0.67,221.4,221.33,33.08]
[1760022865413,0.67,221.39,221.33,33.08]
[1760022865786,0.67,221.44,221.33,247.28]
[1760022866001,3.01109113,221.43,221.32,29.24811502]
[1760022866306,0.67,221.42,221.35,4.51773209]
[1760022867201,3.96331885,221.45,221.35,4.51773209]
[1760022867202,0.67,221.45,221.35,4.51773209]
[1760022867392,3.01228312,221.44,221.35,218.71773209]
[1760022867586,0.67,221.45,221.35,218.71773209]
[1760022867907,3.01228437,221.44,221.35,230.01206233]
[1760022868214,1.12163038,221.45,221.35,230.01206233]
[1760022868391,3.01284711,221.44,221.35,230.01206233]
[1760022868709,1.12163038,221.45,221.35,230.01206233]
[1760022868908,3.01284711,221.44,221.35,230.01206233]
[1760022869088,1.12163038,221.45,221.35,230.01206233]
[1760022869290,3.01304593,221.44,221.35,230.01206233]
[1760022869616,5.08494923,221.45,221.35,230.01206233]
[1760022869800,3.96331885,221.42,221.35,214.2]
[1760022870005,1.12163038,221.41,221.36,33.1]
[1760022870396,0.45163038,221.43,221.36,33.1]
[1760022870708,20.8,221.44,221.37,4.51732393]
[1760022871289,3.01416787,221.43,221.37,4.51732393]
[1760022871511,20.8,221.44,221.37,4.51732393]
[1760022873093,20.8,221.47,221.37,15.81063377]
[1760022873410,3.01557642,221.46,221.37,15.81063377]
[1760022873710,0.2,221.49,221.38,10.87647521]
[1760022874014,23.81620393,221.48,221.39,33.06]
[1760022874216,20.8,221.48,221.39,33.06]
[1760022875087,20.8,221.48,221.4,15.80849141]
[1760022875920,21.0,221.49,221.4,15.80849141]
[1760022876125,24.48583321,221.48,221.4,15.80849141]
[1760022876421,21.47,221.48,221.4,15.80849141]
[1760022876813,0.67,221.48,221.4,15.80849141]
[1760022878315,0.67,221.48,221.4,230.00849141]
[1760022878731,0.67,221.47,221.4,214.2]
[1760022878898,0.67,221.46,221.41,33.0]
[1760022879097,0.67,221.45,221.41,33.0]
[1760022879299,0.67,221.44,221.41,33.0]
[1760022880229,25.21494923,221.47,221.41,33.0]
[1760022880439,3.68662701,221.46,221.41,33.0]
[1760022880726,0.67,221.45,221.41,33.0]
[1760022881504,0.67,221.45,221.41,37.51644138]
[1760022882426,1.13163038,221.47,221.41,37.51644138]
[1760022882720,24.76331885,221.42,221.33,214.2]
[1760022882927,0.68,221.41,221.34,37.4579362]
[1760022883505,0.68,221.41,221.34,251.6579362]
[1760022884022,20.8,221.42,221.34,182.05277671]
[1760022884216,20.8,221.42,221.34,262.95277671]
[1760022884525,20.8,221.42,221.34,182.05277671]
[1760022885419,21.47,221.42,221.34,182.05277671]
[1760022886916,20.8,221.42,221.34,182.05277671]
[1760022887813,6.36068663,221.44,221.34,182.05277671]
[1760022887814,27.16068663,221.44,221.34,182.05277671]
[1760022888219,3.01847602,221.43,221.34,182.05277671]
[1760022888407,3.01935389,221.42,221.34,182.05277671]
[1760022888732,0.67,221.43,221.34,182.05277671]
[1760022888922,5.90905625,221.41,221.34,170.7579362]
[1760022889120,6.57905625,221.41,221.34,170.7579362]
[1760022889609,5.90905625,221.41,221.34,170.7579362]
[1760022889923,7.03068663,221.43,221.34,37.4579362]
[1760022890153,3.02028783,221.42,221.34,251.6579362]
[1760022890306,20.8,221.44,221.34,48.75277671]
[1760022890512,3.69135981,221.43,221.34,48.75277671]
[1760022890718,3.02135981,221.42,221.34,48.75277671]
[1760022891025,0.67,221.43,221.34,48.75277671]
[1760022891205,3.02140744,221.42,221.34,48.75277671]
[1760022891413,0.67,221.43,221.34,48.75277671]
[1760022891613,3.02260307,221.42,221.34,48.75277671]
[1760022891814,0.67,221.43,221.34,48.75277671]
[1760022892004,3.02260307,221.42,221.34,48.75277671]
[1760022892204,0.67,221.43,221.34,48.75277671]
[1760022892403,3.02296428,221.42,221.34,48.75277671]
[1760022892631,0.67,221.43,221.34,48.75277671]
[1760022892822,3.02296428,221.42,221.34,48.75277671]
[1760022893017,0.67,221.43,221.34,48.75277671]
[1760022893224,3.0229316,221.42,221.34,48.75277671]
[1760022893418,0.67,221.43,221.34,48.75277671]
[1760022893625,3.02383471,221.42,221.34,48.75277671]
[1760022893812,3.02376766,221.41,221.34,48.75277671]
[1760022894020,0.67,221.43,221.34,48.75277671]
[1760022894317,3.02376858,221.42,221.34,48.75277671]
[1760022894532,0.67,221.43,221.34,48.75277671]
[1760022894733,3.02432003,221.42,221.34,48.75277671]
[1760022894938,4.14595041,221.41,221.34,4.5179362]
[1760022895105,3.0242278,221.4,221.35,32.84]
[1760022895305,0.67,221.4,221.35,37.35759756]
[1760022895727,0.45163038,221.43,221.35,37.35759756]
[1760022896013,3.02659697,221.42,221.35,181.9519278]
[1760022896229,3.02659697,221.41,221.35,181.9519278]
[1760022896418,3.02659697,221.4,221.35,48.6519278]
[1760022896618,20.8,221.44,221.35,48.6519278]
[1760022896935,3.02876506,221.43,221.35,48.6519278]
[1760022897141,3.02876506,221.42,221.35,48.6519278]
[1760022897342,3.02876506,221.41,221.35,48.6519278]
[1760022897649,3.02876506,221.4,221.35,48.6519278]
[1760022897841,20.8,221.44,221.35,48.6519278]
[1760022898028,3.03052351,221.43,221.35,48.6519278]
[1760022898340,3.03052351,221.42,221.35,48.6519278]
[1760022898517,3.03052351,221.41,221.35,48.6519278]
[1760022898724,0.67,221.45,221.35,48.6519278]
[1760022899026,3.03079504,221.44,221.35,48.6519278]
[1760022899228,3.03079504,221.43,221.35,48.6519278]
[1760022899438,3.03079504,221.42,221.35,48.6519278]
[1760022899633,3.03069798,221.41,221.35,48.6519278]
[1760022899934,0.67,221.45,221.35,48.6519278]
[1760022900150,3.03073384,221.44,221.35,48.6519278]
[1760022900342,4.15236422,221.43,221.35,48.6519278]
[1760022900513,3.03073384,221.42,221.36,32.78]
[1760022900841,3.03073384,221.41,221.36,32.78]
[1760022901048,20.8,221.44,221.36,32.78]
[1760022901343,3.03059606,221.43,221.36,32.78]
[1760022901537,3.03059606,221.42,221.36,214.2]
[1760022901739,5.90905625,221.37,221.36,80.9]
[1760022901951,9.60965231,221.37,221.36,80.9]
[1760022903052,3.03059606,221.37,221.36,80.9]
[1760022903369,3.70059606,221.37,221.36,80.9]
[1760022903926,3.03059606,221.37,221.36,80.9]
[1760022905174,3.70059606,221.37,221.36,80.9]
[1760022905347,4.15222644,221.37,221.36,80.9]
[1760022906339,10.06128269,221.37,221.36,80.9]
[1760022907435,4.15222644,221.37,221.36,80.9]
[1760022908171,20.8,221.33,221.31,80.9]
[1760022908342,24.50059606,221.32,221.31,80.9]
[1760022908522,27.01506973,221.32,221.31,80.9]
[1760022908726,24.50059606,221.32,221.31,80.9]
[1760022909536,3.03059606,221.32,221.31,80.9]
[1760022909932,20.8,221.35,221.31,85.41854864]
[1760022910155,3.03643794,221.34,221.31,85.41854864]
[1760022910449,0.45163038,221.37,221.31,80.9]
[1760022910450,21.25163038,221.37,221.31,80.9]
[1760022910640,20.8,221.35,221.31,80.9]
[1760022910837,3.03599029,221.34,221.31,80.9]
[1760022911054,21.25163038,221.35,221.31,80.9]
[1760022911647,3.03561488,221.34,221.31,85.41841934]
[1760022911854,0.45163038,221.39,221.32,32.74]
[1760022912056,23.83538803,221.38,221.32,113.64]
[1760022912274,2.51447367,221.36,221.32,80.9]
[1760022912556,2.51447367,221.34,221.32,80.9]
[1760022912761,0.66,221.33,221.32,80.9]
[1760022912958,3.17447367,221.33,221.32,80.9]
[1760022913254,2.51447367,221.33,221.32,80.9]
[1760022913431,3.17447367,221.33,221.32,80.9]
[1760022913638,6.20939861,221.33,221.32,80.9]
[1760022913852,17.08587382,221.33,221.32,80.9]
[1760022914038,10.87647521,221.29,221.22,32.76]
[1760022914238,2.51447367,221.26,221.23,32.76]
[1760022914950,1.11163038,221.28,221.23,32.76]
[1760022914951,2.51447367,221.27,221.23,32.76]
[1760022915167,0.45163038,221.26,221.23,32.76]
[1760022916159,3.69246476,221.25,221.16,0.65]
[1760022916342,3.69246476,221.25,221.12,32.74]
[1760022916343,2.51447367,221.17,221.12,32.74]
[1760022916541,2.51447367,221.21,221.12,32.74]
[1760022916738,3.48255608,221.2,221.13,0.65]
[1760022916938,20.8,221.24,221.13,0.65]
[1760022916939,20.8,221.25,221.14,4.52202224]
[1760022917233,20.8,221.25,221.15,33.45]
[1760022917436,0.66,221.29,221.17,10.87647521]
[1760022917655,3.02779166,221.28,221.18,33.45]
[1760022917833,0.66,221.29,221.18,33.45]
[1760022917834,0.66,221.29,221.18,32.8]
[1760022918031,3.02762652,221.28,221.19,0.65]
[1760022918249,0.45163038,221.28,221.19,0.65]
[1760022918734,3.62610405,221.28,221.19,0.65]
[1760022919253,1.11163038,221.28,221.2,4.52079566]
[1760022919456,20.8,221.29,221.21,33.45]
[1760022919762,21.25163038,221.29,221.21,33.45]
[1760022920267,3.02545027,221.28,221.21,33.45]
[1760022920557,21.25163038,221.29,221.22,4.52038694]
[1760022920961,20.8,221.31,221.23,0.65]
[1760022921140,20.8,221.31,221.24,32.78]
[1760022921532,1.11163038,221.32,221.24,33.43]
[1760022922264,2.96610405,221.33,221.25,0.65]
[1760022922465,1.11163038,221.36,221.26,4.51956973]
[1760022922649,20.8,221.34,221.27,0.65]
[1760022922957,23.82384614,221.33,221.28,32.8]
[1760022923161,20.8,221.33,221.28,32.8]
[1760022923366,20.8,221.33,221.28,33.45]
[1760022923672,21.46,221.33,221.28,32.8]
[1760022923963,1.11163038,221.32,221.28,32.8]
[1760022924464,0.45163038,221.32,221.28,32.8]
[1760022924651,21.25163038,221.33,221.28,4.51912442]
[1760022924855,0.45163038,221.36,221.29,33.41]
[1760022925180,0.45163038,221.38,221.3,0.65]
[1760022926264,2.51447367,221.36,221.28,4.51912442]
[1760022926579,3.62610405,221.36,221.31,37.27851826]
[1760022927046,3.17447367,221.36,221.31,37.27851826]
[1760022927370,1.11163038,221.39,221.32,0.65]
[1760022927546,3.02462567,221.38,221.32,0.65]
[1760022927746,1.11163038,221.39,221.32,0.65]
[1760022927974,3.02462418,221.38,221.32,0.65]
[1760022928147,21.91163038,221.39,221.32,0.65]
[1760022928346,3.02454756,221.38,221.32,0.65]
[1760022928547,21.91163038,221.39,221.33,4.51814033]
[1760022928749,3.02482766,221.38,221.33,4.51814033]
[1760022928965,0.66,221.38,221.33,4.51814033]
[1760022929342,3.02504542,221.37,221.33,4.51814033]
[1760022929562,0.66,221.38,221.33,4.51814033]
[1760022929766,20.8,221.39,221.34,0.65]
[1760022929957,21.25163038,221.4,221.35,32.72]
[1760022930143,21.25163038,221.4,221.35,33.37]
[1760022930464,0.66,221.41,221.37,4.51732393]
[1760022930663,0.66,221.44,221.37,4.51732393]
[1760022930861,0.66,221.44,221.38,0.65]
[1760022931047,2.51447367,221.46,221.39,32.7]
[1760022931250,3.02412391,221.45,221.39,32.7]
[1760022931458,0.65163038,221.49,221.4,0.65]
[1760022932170,0.2,221.49,221.42,20.8]
[1760022932371,0.2,221.49,221.43,0.65]
[1760022932580,0.2,221.49,221.45,4.51569202]
[1760022932749,0.2,221.49,221.46,0.65]
[1760022933472,0.2,221.49,221.47,0.65]
[1760022933677,0.2,221.49,221.45,15.80492209]
[1760022933862,0.2,221.49,221.46,0.65]
[1760022934652,0.2,221.49,221.47,4.51528423]
[1760022934852,0.2,221.49,221.48,32.72]
[1760022937477,0.2,221.49,221.48,32.68]
[1760022938373,0.2,221.49,221.48,33.33]
[1760022939354,0.2,221.49,221.48,37.84508036]
[1760022941569,0.2,221.49,221.48,37.19508036]
[1760022941973,0.2,221.49,221.48,37.13508036]
[1760022942985,0.2,221.49,221.48,37.83508036]
[1760022944574,0.2,221.49,221.48,48.71155557]
[1760022944976,1e-08,221.49,221.48,48.71155557]
[1760022947172,1e-08,221.51,221.5,31.67647521]
[1760022947374,1e-08,221.52,221.51,10.87647521]
[1760022947596,0.67,221.64,221.54,20.8]
[1760022947773,0.67,221.64,221.55,32.62]
[1760022947969,0.67,221.64,221.55,46.62688217]
[1760022948293,0.87,221.65,221.56,0.7]
[1760022948594,0.87,221.65,221.57,32.62]
[1760022948776,0.87,221.65,221.58,0.7]
[1760022948977,0.87,221.65,221.59,32.62]
[1760022949197,0.2,221.65,221.6,15.79422381]
[1760022949497,0.2,221.65,221.61,32.62]
[1760022949666,0.2,221.65,221.61,33.32]
[1760022950671,0.2,221.65,221.61,32.62]
[1760022951385,0.2,221.65,221.62,4.51222813]
[1760022951586,0.2,221.65,221.63,32.62]
[1760022952295,0.67,221.64,221.58,4.51285325]
[1760022952473,0.67,221.63,221.59,32.6]
[1760022952673,0.67,221.62,221.59,32.6]
[1760022952874,0.67,221.61,221.55,17.82046204]
[1760022953177,0.67,221.6,221.56,32.6]
[1760022953492,0.67,221.63,221.57,4.51324637]
[1760022953988,0.2,221.65,221.58,0.7]
[1760022954191,0.2,221.65,221.59,32.6]
[1760022954887,0.87,221.65,221.59,32.6]
[1760022955196,0.2,221.65,221.59,32.6]
[1760022955492,0.2,221.65,221.61,15.79351111]
[1760022955693,0.2,221.65,221.62,32.6]
[1760022957091,0.2,221.65,221.63,4.51202454]
[1760022958372,0.2,221.65,221.63,5.21202454]
[1760022958579,0.2,221.65,221.63,4.51202454]
[1760022960285,0.2,221.65,221.63,5.21202454]
[1760022960881,0.2,221.65,221.63,4.51202454]
[1760022962301,0.2,221.65,221.64,0.7]
[1760022962800,0.87,221.65,221.64,32.6]
[1760022963172,0.2,221.65,221.64,32.6]
[1760022964183,0.2,221.65,221.64,37.11182097]
[1760022964384,0.2,221.65,221.64,4.51182097]
[1760022964902,0.2,221.65,221.64,37.11182097]
[1760022965609,0.2,221.65,221.64,37.81182097]
[1760022965794,0.2,221.65,221.64,37.11182097]
[1760022967098,0.2,221.65,221.64,118.01182097]
[1760022967316,0.2,221.65,221.64,118.71182097]
[1760022967908,0.45163038,221.76,221.71,80.1]